[Event "17th Spilimbergo Open 2019"]
[Site "Spilimbergo"]
[Date "2019.08.14"]
[Round "8.2"]
[White "Bosiocic, Marin"]
[Black "Saric, Ivan"]
[Result "0-1"]
[WhiteElo "2611"]
[BlackElo "2660"]
[PlyCount "114"]
[EventDate "2019.08.09"]
[EventType "swiss"]
[EventCountry "ITA"]
[TimeControl "5400+30"]
[WhiteClock "0:20:00"]
[BlackClock "0:09:22"]

1. d4 {[%emt 0:00:30]} d5 {[%emt 0:00:30]} 2. c4 {[%emt 0:00:00]} c6 {[%emt 0:00:00]} 3. Nf3 {[%emt 0:00:00]} Nf6 {[%emt 0:00:00]} 4. e3 {[%emt 0:00:00]} Bg4 {[%emt 0:00:30]} 5. Qb3 {[%emt 0:00:00]} Qb6 {[%emt 0:00:00]} 6. Nc3 {[%emt 0:00:30]} e6 {[%emt 0:00:00]} 7. Nh4 {[%emt 0:00:00]} Be7 {[%emt 0:00:30]} 8. h3 {[%emt 0:00:00]} Bh5 {[%emt 0:00:00]} 9. g4 {[%emt 0:00:30]} Bg6 {[%emt 0:00:00]} 10. Nxg6 {[%emt 0:00:00]} hxg6 {[%emt 0:00:00]} 11. Bg2 {[%emt 0:00:00]} g5 {[%emt 0:00:00]} 12. Bd2 {[%emt 0:00:00]} Nbd7 {[%emt 0:00:30]} 13. O-O-O {[%emt 0:00:00]} a5 {[%emt 0:00:30]} 14. Qxb6 {[%emt 0:05:30]} Nxb6 {[%emt 0:00:00]} 15. cxd5 {[%emt 0:00:00]} Nfxd5 {[%emt 0:06:00]} 16. Ne4 {[%emt 0:04:00]} Nc4 {[%emt 0:05:30]} 17. Be1 {[%emt 0:00:30]} a4 {[%emt 0:03:30]} 18. Bf1 {[%emt 0:04:30]} Nd6 {[%emt 0:02:30]} 19. Nc5 {[%emt 0:01:30]} b6 {[%emt 0:02:30]} 20. Nd3 {[%emt 0:00:30]} a3 {[%emt 0:04:30]} 21. b3 {[%emt 0:00:30]} Rc8 {[%emt 0:06:30]} 22. Kb1 {[%emt 0:05:30]} c5 {[%emt 0:02:30]} 23. dxc5 {[%emt 0:02:30]} bxc5 {[%emt 0:02:30]} 24. Rc1 {[%emt 0:06:30]} c4 {[%emt 0:01:30]} 25. Ne5 {[%emt 0:02:30]} cxb3 {[%emt 0:15:30]} 26. Rxc8+ {[%emt 0:00:00]} Nxc8 {[%emt 0:00:30]} 27. Bb5+ {[%emt 0:00:00]} Kf8 {[%emt 0:00:30]} 28. axb3 {[%emt 0:00:30]} Nd6 {[%emt 0:00:30]} 29. Bd3 {[%emt 0:11:30]} g6 {[%emt 0:01:30]} 30. e4 {[%emt 0:11:30]} Nf4 {[%emt 0:00:30]} 31. Bc3 {[%emt 0:00:30]} f6 {[%emt 0:12:30]} 32. Nd7+ {[%emt 0:00:30]} Kf7 {[%emt 0:00:30]} 33. e5 {[%emt 0:01:30]} Rc8 {[%emt 0:01:30]} 34. Ba1 {[%emt 0:15:30]} Nxd3 {[%emt 0:00:30]} 35. exd6 {[%emt 0:00:30]} Bxd6 {[%emt 0:07:30]} 36. Rd1 {[%emt 0:01:30]} Nb4 {[%emt 0:01:30]} 37. Bxf6 {[%emt 0:05:30]} a2+ {[%emt 0:02:30]} 38. Ka1 {[%emt 0:00:30]} Ra8 {[%emt 0:00:30]} 39. Rd2 {[%emt 0:04:30]} Bf4 {[%emt 0:03:30]} 40. Re2 {[%emt 0:00:30]} Ra7 {[%emt 0:01:41]} 41. Bc3 {[%emt 0:00:30]} Nd3 {[%emt 0:00:12]} 42. Ne5+ {[%emt 0:02:10]} Bxe5 {[%emt 0:00:10]} 43. Bxe5 {[%emt 0:00:04]} Nc1 {[%emt 0:00:16]} 44. Re3 {[%emt 0:02:46]} Ra3 {[%emt 0:00:11]} 45. b4 {[%emt 0:00:24]} Nb3+ {[%emt 0:00:30]} 46. Rxb3 {[%emt 0:00:09]} Rxb3 {[%emt 0:00:30]} 47. Bd6 {[%emt 0:00:08]} Ra3 {[%emt 0:00:30]} 48. Bc5 {[%emt 0:00:59]} e5 {[%emt 0:00:30]} 49. Be3 {[%emt 0:00:04]} Ke6 {[%emt 0:00:30]} 50. b5 {[%emt 0:00:52]} Kd5 {[%emt 0:00:30]} 51. Bxg5 {[%emt 0:00:32]} Rxh3 {[%emt 0:00:30]} 52. Kxa2 {[%emt 0:02:44]} Kc5 {[%emt 0:00:00]} 53. Kb2 {[%emt 0:00:06]} Kxb5 {[%emt 0:01:28]} 54. Kc2 {[%emt 0:00:29]} Kc4 {[%emt 0:00:04]} 55. Kd2 {[%emt 0:00:10]} Kd4 {[%emt 0:00:28]} 56. Ke2 {[%emt 0:00:20]} Ke4 {[%emt 0:00:30]} 57. Bf6 {[%emt 0:06:41]} Kf4 0-1

[Event "17th Spilimbergo Open 2019"]
[Site "Spilimbergo"]
[Date "2019.08.14"]
[Round "8.3"]
[White "Nagy, Gabor"]
[Black "Palac, Mladen"]
[Result "1/2-1/2"]
[WhiteElo "2473"]
[BlackElo "2551"]
[PlyCount "39"]
[EventDate "2019.08.09"]
[EventType "swiss"]
[EventCountry "ITA"]
[TimeControl "5400+30"]
[WhiteClock "1:28:00"]
[BlackClock "1:21:00"]

1. d4 {[%emt 0:00:30]} Nf6 {[%emt 0:04:30]} 2. Nf3 {[%emt 0:00:30]} d5 {[%emt 0:00:30]} 3. c4 {[%emt 0:00:00]} e6 {[%emt 0:00:00]} 4. Nc3 {[%emt 0:00:00]} c6 {[%emt 0:00:00]} 5. e3 {[%emt 0:01:30]} Nbd7 {[%emt 0:00:30]} 6. Qc2 {[%emt 0:00:00]} Bd6 {[%emt 0:00:00]} 7. Bd3 {[%emt 0:00:00]} O-O {[%emt 0:00:00]} 8. O-O {[%emt 0:00:30]} dxc4 {[%emt 0:00:30]} 9. Bxc4 {[%emt 0:01:30]} b5 {[%emt 0:00:30]} 10. Be2 {[%emt 0:00:00]} Bb7 {[%emt 0:00:00]} 11. e4 {[%emt 0:00:00]} e5 {[%emt 0:00:00]} 12. dxe5 {[%emt 0:01:30]} Nxe5 {[%emt 0:00:00]} 13. Nd4 {[%emt 0:00:30]} Neg4 {[%emt 0:00:00]} 14. g3 {[%emt 0:00:00]} Re8 {[%emt 0:00:30]} 15. Nf5 {[%emt 0:01:00]} Bc5 {[%emt 0:00:00]} 16. Bf4 {[%emt 0:00:30]} Qb6 {[%emt 0:04:00]} 17. Kg2 {[%emt 0:09:30]} g6 {[%emt 0:00:30]} 18. h3 {[%emt 0:00:30]} gxf5 {[%emt 0:00:00]} 19. hxg4 {[%emt 0:00:30]} Bd4 {[%emt 0:00:00]} 20. gxf5 1/2-1/2

[Event "17th Spilimbergo Open 2019"]
[Site "Spilimbergo"]
[Date "2019.08.14"]
[Round "8.4"]
[White "Miron, Lucian-Costin"]
[Black "Nisipeanu, Liviu-Dieter"]
[Result "1/2-1/2"]
[WhiteElo "2494"]
[BlackElo "2666"]
[PlyCount "51"]
[EventDate "2019.08.09"]
[EventType "swiss"]
[EventCountry "ITA"]
[TimeControl "5400+30"]

1. e4 {[%emt 0:00:30]} e5 {[%emt 0:05:30]} 2. Nf3 {[%emt 0:00:30]} d6 {[%emt 0:00:00]} 3. d4 {[%emt 0:02:30]} exd4 {[%emt 0:00:00]} 4. Nxd4 {[%emt 0:00:00]} Nf6 {[%emt 0:00:30]} 5. Nc3 {[%emt 0:01:00]} Be7 {[%emt 0:00:00]} 6. g3 {[%emt 0:00:30]} Bg4 {[%emt 0:04:00]} 7. f3 {[%emt 0:07:30]} Bd7 {[%emt 0:00:30]} 8. Be3 {[%emt 1:21:30]} Bc8 {[%emt 0:04:30]} 9. Bc1 {[%emt 0:00:30]} Bd7 {[%emt 0:00:30]} 10. Be3 {[%emt 0:00:30]} O-O {[%emt 0:00:30]} 11. Qd2 {[%emt 0:00:00]} c5 {[%emt 0:31:30]} 12. Nde2 {[%emt 0:00:00]} Nc6 {[%emt 0:01:30]} 13. Nf4 {[%emt 0:00:00]} Ne5 {[%emt 0:15:30]} 14. Be2 {[%emt 0:00:00]} b5 {[%emt 0:00:30]} 15. O-O {[%emt 0:00:00]} Rb8 {[%emt 0:00:30]} 16. Rad1 {[%emt 0:00:00]} Re8 {[%emt 0:00:30]} 17. b3 {[%emt 0:00:00]} Bf8 {[%emt 0:00:00]} 18. Ncd5 {[%emt 0:00:00]} Nxd5 {[%emt 0:01:00]} 19. Nxd5 {[%emt 0:00:00]} Bc6 {[%emt 0:00:00]} 20. Bf4 {[%emt 0:00:00]} Re6 {[%emt 0:03:00]} 21. g4 {[%emt 0:00:00]} Qd7 {[%emt 0:09:30]} 22. Bg3 {[%emt 0:00:00]} Qb7 {[%emt 0:00:30]} 23. Nf4 {[%emt 0:00:00]} Ree8 {[%emt 0:00:30]} 24. Nd5 {[%emt 0:00:00]} Re6 {[%emt 0:00:00]} 25. Nf4 {[%emt 0:00:00]} Ree8 {[%emt 0:00:00]} 26. Nd5 {[%emt 0:08:00]} 1/2-1/2

[Event "17th Spilimbergo Open 2019"]
[Site "Spilimbergo"]
[Date "2019.08.14"]
[Round "8.5"]
[White "Rahul Srivatshav P"]
[Black "Dragnev, Valentin"]
[Result "0-1"]
[WhiteElo "2410"]
[BlackElo "2535"]
[PlyCount "58"]
[EventDate "2019.08.09"]
[EventType "swiss"]
[EventCountry "ITA"]
[TimeControl "5400+30"]
[WhiteClock "0:14:03"]
[BlackClock "0:01:05"]

1. c4 {[%emt 0:00:30]} e6 {[%emt 0:01:30]} 2. Nc3 {[%emt 0:00:00]} d5 {[%emt 0:00:30]} 3. d4 {[%emt 0:00:00]} Nf6 {[%emt 0:00:00]} 4. cxd5 {[%emt 0:00:00]} exd5 {[%emt 0:01:00]} 5. Bg5 {[%emt 0:00:00]} c6 {[%emt 0:00:30]} 6. e3 {[%emt 0:00:30]} Bd6 {[%emt 0:00:30]} 7. Bd3 {[%emt 0:02:30]} O-O {[%emt 0:00:00]} 8. Qc2 {[%emt 0:09:30]} h6 {[%emt 0:00:00]} 9. Bh4 {[%emt 0:00:30]} Re8 {[%emt 0:00:30]} 10. Nge2 {[%emt 0:02:30]} Nbd7 {[%emt 0:03:30]} 11. g4 {[%emt 0:09:30]} Qa5 {[%emt 0:16:30]} 12. g5 {[%emt 0:16:30]} hxg5 {[%emt 0:05:30]} 13. Bxg5 {[%emt 0:00:30]} b5 {[%emt 0:01:30]} 14. O-O-O {[%emt 0:01:30]} Ba6 {[%emt 0:01:30]} 15. Rhg1 {[%emt 0:05:30]} b4 {[%emt 0:03:30]} 16. Bh6 {[%emt 0:11:30]} Bf8 {[%emt 0:05:30]} 17. Bxa6 {[%emt 0:07:30]} Qxa6 {[%emt 0:07:30]} 18. Na4 {[%emt 0:01:30]} Kh8 {[%emt 0:03:30]} 19. Bg5 {[%emt 0:04:30]} Ne4 {[%emt 0:02:30]} 20. f3 {[%emt 0:00:00]} Nxg5 {[%emt 0:15:30]} 21. Rxg5 {[%emt 0:00:00]} g6 {[%emt 0:00:30]} 22. Nf4 {[%emt 0:05:30]} Qc4 {[%emt 0:11:50]} 23. Nc3 {[%emt 0:01:30]} Bg7 {[%emt 0:03:20]} 24. Nxg6+ {[%emt 0:08:48]} fxg6 {[%emt 0:00:16]} 25. Qxg6 {[%emt 0:00:07]} Re7 {[%emt 0:00:13]} 26. Rh5+ {[%emt 0:07:09]} Kg8 {[%emt 0:00:02]} 27. Qh7+ {[%emt 0:00:03]} Kf8 {[%emt 0:01:20]} 28. Rf5+ {[%emt 0:05:02]} Ke8 {[%emt 0:01:26]} 29. Rg5 {[%emt 0:00:46]} Bf8 0-1

[Event "17th Spilimbergo Open 2019"]
[Site "Spilimbergo"]
[Date "2019.08.14"]
[Round "8.6"]
[White "Sardana, Rishi"]
[Black "Vetoshko, Volodymyr"]
[Result "0-1"]
[WhiteElo "2410"]
[BlackElo "2495"]
[PlyCount "148"]
[EventDate "2019.08.09"]
[EventType "swiss"]
[EventCountry "ITA"]
[TimeControl "5400+30"]
[WhiteClock "0:00:52"]
[BlackClock "0:00:33"]

1. e4 {[%emt 0:00:30]} e5 {[%emt 0:06:30]} 2. Nf3 {[%emt 0:00:00]} Nc6 {[%emt 0:00:00]} 3. Bc4 {[%emt 0:00:00]} Bc5 {[%emt 0:00:00]} 4. d3 {[%emt 0:00:00]} Nf6 {[%emt 0:00:30]} 5. O-O {[%emt 0:00:00]} d6 {[%emt 0:00:30]} 6. c3 {[%emt 0:00:30]} O-O {[%emt 0:00:00]} 7. a4 {[%emt 0:00:30]} a6 {[%emt 0:02:00]} 8. Bg5 {[%emt 0:00:30]} h6 {[%emt 0:01:30]} 9. Bh4 {[%emt 0:00:30]} g5 {[%emt 0:01:30]} 10. Bg3 {[%emt 0:00:00]} Bg4 {[%emt 0:00:00]} 11. h3 {[%emt 0:08:00]} Bh5 {[%emt 0:02:00]} 12. Re1 {[%emt 0:05:30]} Ba7 {[%emt 0:02:30]} 13. Nbd2 {[%emt 0:01:30]} Bg6 {[%emt 0:17:30]} 14. Nf1 {[%emt 0:00:30]} Nh5 {[%emt 0:00:30]} 15. Bh2 {[%emt 0:01:30]} Nf4 {[%emt 0:00:30]} 16. Ne3 {[%emt 0:00:30]} Kh7 {[%emt 0:00:30]} 17. Bb3 {[%emt 0:25:30]} Ne7 {[%emt 0:14:30]} 18. Bc2 {[%emt 0:00:30]} f6 {[%emt 0:11:30]} 19. d4 {[%emt 0:00:30]} Bh5 {[%emt 0:07:30]} 20. Ng4 {[%emt 0:11:30]} Neg6 {[%emt 0:02:30]} 21. Bg3 {[%emt 0:07:30]} Qd7 {[%emt 0:05:30]} 22. Nfh2 {[%emt 0:02:30]} Rad8 {[%emt 0:02:30]} 23. Nf1 {[%emt 0:13:30]} Nh4 {[%emt 0:03:27]} 24. Bxf4 {[%emt 0:04:02]} Bxg4 {[%emt 0:02:00]} 25. hxg4 {[%emt 0:01:07]} gxf4 {[%emt 0:00:06]} 26. g3 {[%emt 0:00:43]} Rg8 {[%emt 0:02:54]} 27. Nh2 {[%emt 0:00:08]} Ng6 {[%emt 0:03:02]} 28. Kg2 {[%emt 0:00:02]} Kg7 {[%emt 0:00:50]} 29. Rh1 {[%emt 0:03:05]} Rge8 {[%emt 0:01:48]} 30. d5 {[%emt 0:04:08]} c6 {[%emt 0:00:08]} 31. Bb3 {[%emt 0:00:50]} a5 {[%emt 0:00:54]} 32. Qf3 {[%emt 0:00:52]} Qc7 {[%emt 0:01:07]} 33. Nf1 {[%emt 0:00:42]} Qb6 {[%emt 0:00:43]} 34. Nd2 {[%emt 0:00:47]} fxg3 {[%emt 0:01:38]} 35. fxg3 {[%emt 0:00:16]} cxd5 {[%emt 0:03:50]} 36. Bxd5 {[%emt 0:00:16]} Qxb2 {[%emt 0:00:12]} 37. Ra2 {[%emt 0:00:41]} Qb6 {[%emt 0:00:08]} 38. Nc4 {[%emt 0:01:20]} Qc5 {[%emt 0:00:11]} 39. Rb2 {[%emt 0:00:20]} Re7 {[%emt 0:02:40]} 40. Rb5 {[%emt 0:00:07]} Qc8 {[%emt 0:00:52]} 41. Rxa5 {[%emt 0:00:53]} Bc5 {[%emt 0:00:36]} 42. Rb5 {[%emt 0:00:28]} Rc7 {[%emt 0:00:19]} 43. Rhb1 {[%emt 0:02:04]} Ne7 {[%emt 0:00:37]} 44. Bxb7 {[%emt 0:01:59]} Qe6 {[%emt 0:00:00]} 45. Bd5 {[%emt 0:00:00]} Nxd5 {[%emt 0:00:44]} 46. exd5 {[%emt 0:00:00]} Qf7 {[%emt 0:00:52]} 47. Nd2 {[%emt 0:00:05]} Rf8 {[%emt 0:01:04]} 48. c4 {[%emt 0:01:03]} f5 {[%emt 0:00:48]} 49. gxf5 {[%emt 0:00:29]} Qxf5 {[%emt 0:00:00]} 50. Qxf5 {[%emt 0:00:17]} Rxf5 {[%emt 0:00:08]} 51. Ne4 {[%emt 0:00:13]} Ba3 {[%emt 0:00:26]} 52. c5 {[%emt 0:04:01]} Bxc5 {[%emt 0:00:30]} 53. Rb7 {[%emt 0:00:29]} Rff7 {[%emt 0:00:15]} 54. Nxc5 {[%emt 0:00:19]} Rxc5 {[%emt 0:00:07]} 55. Rd7 {[%emt 0:03:56]} Kg6 {[%emt 0:01:01]} 56. Rxf7 {[%emt 0:00:00]} Kxf7 {[%emt 0:00:47]} 57. Rb7+ {[%emt 0:00:16]} Kg6 {[%emt 0:00:40]} 58. a5 {[%emt 0:00:30]} Rxd5 {[%emt 0:00:33]} 59. Rd7 {[%emt 0:00:30]} Kf5 {[%emt 0:00:00]} 60. a6 {[%emt 0:00:16]} Ke6 {[%emt 0:00:41]} 61. a7 {[%emt 0:00:09]} Ra5 {[%emt 0:00:11]} 62. Rh7 {[%emt 0:00:21]} Kd5 {[%emt 0:00:15]} 63. Kf3 {[%emt 0:00:42]} Ra4 {[%emt 0:01:18]} 64. g4 {[%emt 0:00:34]} Ra3+ {[%emt 0:00:33]} 65. Kf2 {[%emt 0:00:01]} e4 {[%emt 0:00:32]} 66. Rd7 {[%emt 0:01:25]} Ke5 {[%emt 0:00:35]} 67. Rf7 {[%emt 0:00:53]} d5 {[%emt 0:00:34]} 68. Kg2 {[%emt 0:00:20]} Kd4 {[%emt 0:00:33]} 69. Rd7 {[%emt 0:00:16]} Kc4 {[%emt 0:01:49]} 70. Re7 {[%emt 0:00:26]} Kd3 {[%emt 0:00:43]} 71. Kg3 {[%emt 0:00:06]} d4 {[%emt 0:00:36]} 72. Kf4 {[%emt 0:01:12]} e3 {[%emt 0:00:02]} 73. Rb7 {[%emt 0:00:32]} e2 {[%emt 0:01:19]} 74. Re7 {[%emt 0:00:46]} Rxa7 0-1

[Event "17th Spilimbergo Open 2019"]
[Site "Spilimbergo"]
[Date "2019.08.14"]
[Round "8.7"]
[White "Loiacono, Leonardo"]
[Black "Barp, Alberto"]
[Result "1/2-1/2"]
[WhiteElo "2249"]
[BlackElo "2411"]
[PlyCount "20"]
[EventDate "2019.08.09"]
[EventType "swiss"]
[EventCountry "ITA"]
[TimeControl "5400+30"]
[WhiteClock "1:23:00"]
[BlackClock "1:27:00"]

1. d4 {[%emt 0:00:30]} Nf6 {[%emt 0:00:30]} 2. c4 {[%emt 0:00:00]} e6 {[%emt 0:00:00]} 3. Nc3 {[%emt 0:00:00]} Bb4 {[%emt 0:00:00]} 4. Qc2 {[%emt 0:00:00]} d5 {[%emt 0:00:00]} 5. cxd5 {[%emt 0:00:00]} exd5 {[%emt 0:00:00]} 6. Bg5 {[%emt 0:00:00]} O-O {[%emt 0:00:30]} 7. e3 {[%emt 0:00:00]} Re8 {[%emt 0:02:30]} 8. Nf3 {[%emt 0:04:30]} h6 {[%emt 0:00:30]} 9. Bh4 {[%emt 0:00:30]} c5 {[%emt 0:07:30]} 10. dxc5 {[%emt 0:02:30]} g5 1/2-1/2

[Event "17th Spilimbergo Open 2019"]
[Site "Spilimbergo"]
[Date "2019.08.14"]
[Round "8.8"]
[White "Moroni, Luca Jr"]
[Black "Petrov, Martin"]
[Result "1/2-1/2"]
[WhiteElo "2572"]
[BlackElo "2477"]
[PlyCount "113"]
[EventDate "2019.08.09"]
[EventType "swiss"]
[EventCountry "ITA"]
[TimeControl "5400+30"]
[WhiteClock "0:04:32"]
[BlackClock "0:03:30"]

1. c4 {[%emt 0:00:30]} Nf6 {[%emt 0:03:30]} 2. Nc3 {[%emt 0:00:00]} e6 {[%emt 0:00:30]} 3. e4 {[%emt 0:01:00]} c5 {[%emt 0:00:30]} 4. e5 {[%emt 0:00:30]} Ng8 {[%emt 0:00:00]} 5. d4 {[%emt 0:00:30]} cxd4 {[%emt 0:00:00]} 6. Qxd4 {[%emt 0:00:00]} Nc6 {[%emt 0:00:30]} 7. Qe4 {[%emt 0:00:00]} d6 {[%emt 0:00:00]} 8. Nf3 {[%emt 0:00:30]} dxe5 {[%emt 0:00:00]} 9. Nxe5 {[%emt 0:00:30]} Nf6 {[%emt 0:04:30]} 10. Nxc6 {[%emt 0:03:30]} Nxe4 {[%emt 0:06:30]} 11. Nxd8 {[%emt 0:01:30]} Nxc3 {[%emt 0:00:00]} 12. Nxf7 {[%emt 0:01:30]} Kxf7 {[%emt 0:00:00]} 13. bxc3 {[%emt 0:00:30]} b6 {[%emt 0:13:30]} 14. Be3 {[%emt 0:05:30]} Bb7 {[%emt 0:00:30]} 15. f3 {[%emt 0:10:30]} Be7 {[%emt 0:12:30]} 16. O-O-O {[%emt 0:05:30]} Rhc8 {[%emt 0:05:30]} 17. Kb2 {[%emt 0:04:30]} Rc7 {[%emt 0:21:30]} 18. Kb3 {[%emt 0:10:30]} Ba6 {[%emt 0:03:30]} 19. Bf4 {[%emt 0:05:30]} Rc5 {[%emt 0:00:30]} 20. Rd7 {[%emt 0:08:30]} Ke8 {[%emt 0:00:30]} 21. Rc7 {[%emt 0:01:30]} Rxc7 {[%emt 0:00:30]} 22. Bxc7 {[%emt 0:00:30]} Rc8 {[%emt 0:03:30]} 23. Bf4 {[%emt 0:00:30]} Bf6 {[%emt 0:07:09]} 24. a4 {[%emt 0:04:30]} Bb7 {[%emt 0:06:30]} 25. Bd3 {[%emt 0:01:30]} Kf7 {[%emt 0:00:46]} 26. Re1 {[%emt 0:05:30]} Rc5 {[%emt 0:02:02]} 27. Bd6 {[%emt 0:03:30]} Rg5 {[%emt 0:00:31]} 28. Re2 {[%emt 0:01:30]} Bc6 {[%emt 0:00:11]} 29. Be4 {[%emt 0:05:06]} Bxe4 {[%emt 0:00:00]} 30. fxe4 {[%emt 0:00:36]} Be7 {[%emt 0:00:19]} 31. c5 {[%emt 0:02:45]} Ke8 {[%emt 0:06:11]} 32. Bxe7 {[%emt 0:05:40]} Kxe7 {[%emt 0:00:02]} 33. cxb6 {[%emt 0:00:09]} axb6 {[%emt 0:00:01]} 34. Rd2 {[%emt 0:01:15]} Rg4 {[%emt 0:02:55]} 35. Kb4 {[%emt 0:03:06]} Rxe4+ {[%emt 0:00:09]} 36. Kb5 {[%emt 0:00:08]} e5 {[%emt 0:00:07]} 37. Ra2 {[%emt 0:01:19]} Re3 {[%emt 0:00:55]} 38. Kxb6 {[%emt 0:02:27]} Rxc3 {[%emt 0:00:07]} 39. a5 {[%emt 0:00:05]} Kd6 {[%emt 0:01:17]} 40. Rd2+ {[%emt 0:01:28]} Ke6 {[%emt 0:00:05]} 41. Rb2 {[%emt 0:00:25]} Ra3 {[%emt 0:02:16]} 42. a6 {[%emt 0:01:22]} e4 {[%emt 0:00:45]} 43. a7 {[%emt 0:00:57]} e3 {[%emt 0:00:26]} 44. Kb7 {[%emt 0:01:28]} Kd5 {[%emt 0:00:11]} 45. a8=Q {[%emt 0:00:31]} Rxa8 {[%emt 0:00:07]} 46. Kxa8 {[%emt 0:00:06]} Kd4 {[%emt 0:00:06]} 47. Rb7 {[%emt 0:02:27]} e2 {[%emt 0:00:07]} 48. Rd7+ {[%emt 0:00:39]} Kc3 {[%emt 0:00:24]} 49. Re7 {[%emt 0:00:07]} Kd2 {[%emt 0:00:03]} 50. Rd7+ {[%emt 0:00:02]} Kc2 {[%emt 0:01:00]} 51. Re7 {[%emt 0:00:08]} Kd2 {[%emt 0:00:03]} 52. Rd7+ {[%emt 0:00:01]} Ke3 {[%emt 0:01:05]} 53. Rxg7 {[%emt 0:03:14]} e1=Q {[%emt 0:00:07]} 54. Re7+ {[%emt 0:00:07]} Kf2 {[%emt 0:00:00]} 55. Rxe1 {[%emt 0:00:00]} Kxe1 {[%emt 0:00:00]} 56. Kb7 {[%emt 0:00:00]} Kf2 {[%emt 0:00:00]} 57. g4 {[%emt 0:00:00] Kg3# [%clk 0:04:28] g5+} 1/2-1/2

[Event "17th Spilimbergo Open 2019"]
[Site "Spilimbergo"]
[Date "2019.08.14"]
[Round "8.9"]
[White "Basso, Pier Luigi"]
[Black "Rogulj, Branko"]
[Result "1-0"]
[WhiteElo "2576"]
[BlackElo "2410"]
[PlyCount "139"]
[EventDate "2019.08.09"]
[EventType "swiss"]
[EventCountry "ITA"]
[TimeControl "5400+30"]
[WhiteClock "0:05:59"]
[BlackClock "0:04:20"]

1. d4 {[%emt 0:03:30]} Nf6 {[%emt 0:00:30]} 2. c4 {[%emt 0:00:00]} c5 {[%emt 0:00:00]} 3. d5 {[%emt 0:00:00]} e6 {[%emt 0:00:00]} 4. Nc3 {[%emt 0:00:30]} exd5 {[%emt 0:00:00]} 5. cxd5 {[%emt 0:00:00]} d6 {[%emt 0:00:00]} 6. e4 {[%emt 0:01:00]} g6 {[%emt 0:00:30]} 7. Bd3 {[%emt 0:00:00]} Bg7 {[%emt 0:00:00]} 8. h3 {[%emt 0:00:00]} O-O {[%emt 0:00:00]} 9. Nf3 {[%emt 0:00:30]} b5 {[%emt 0:00:30]} 10. Nxb5 {[%emt 0:00:30]} Re8 {[%emt 0:00:30]} 11. Nd2 {[%emt 0:01:30]} Nxd5 {[%emt 0:00:30]} 12. Nc4 {[%emt 0:00:30]} Bf8 {[%emt 0:23:30]} 13. O-O {[%emt 0:05:30]} Nc7 {[%emt 0:07:30]} 14. Bg5 {[%emt 0:05:30]} Qd7 {[%emt 0:00:30]} 15. Nxc7 {[%emt 0:05:30]} Qxc7 {[%emt 0:00:30]} 16. Ne3 {[%emt 0:00:30]} Bb7 {[%emt 0:03:30]} 17. Bb5 {[%emt 0:05:30]} Nd7 {[%emt 0:05:30]} 18. Qg4 {[%emt 0:04:30]} Bc6 {[%emt 0:13:30]} 19. Nd5 {[%emt 0:08:30]} Bxd5 {[%emt 0:00:30]} 20. exd5 {[%emt 0:00:00]} Ne5 {[%emt 0:00:30]} 21. Qe2 {[%emt 0:04:00]} Nd7 {[%emt 0:03:30]} 22. Qg4 {[%emt 0:11:30]} Ne5 {[%emt 0:00:30]} 23. Qa4 {[%emt 0:02:30]} Reb8 {[%emt 0:00:30]} 24. f4 {[%emt 0:06:30]} a6 {[%emt 0:00:30]} 25. Be2 {[%emt 0:00:30]} Rb4 {[%emt 0:05:30]} 26. Qc2 {[%emt 0:00:30]} Nd7 {[%emt 0:00:00]} 27. b3 {[%emt 0:02:30]} a5 {[%emt 0:05:00]} 28. Rae1 {[%emt 0:00:30]} a4 {[%emt 0:00:30]} 29. Bc4 {[%emt 0:00:30]} Nb6 {[%emt 0:06:30]} 30. f5 {[%emt 0:01:30]} Nxc4 {[%emt 0:00:30]} 31. bxc4 {[%emt 0:00:00]} Qd7 {[%emt 0:01:30]} 32. fxg6 {[%emt 0:01:00]} hxg6 {[%emt 0:00:00]} 33. Bf6 {[%emt 0:01:30]} Re8 {[%emt 0:01:00]} 34. Qc3 {[%emt 0:01:30]} Rxe1 {[%emt 0:00:30]} 35. Rxe1 {[%emt 0:01:30]} Qf5 {[%emt 0:00:30]} 36. Qf3 {[%emt 0:04:30]} Qxf3 {[%emt 0:04:36]} 37. gxf3 {[%emt 0:00:30]} Bg7 {[%emt 0:00:30]} 38. Re8+ {[%emt 0:01:30]} Kh7 {[%emt 0:00:05]} 39. Be7 {[%emt 0:06:22]} Rxc4 {[%emt 0:01:32]} 40. Bxd6 {[%emt 0:00:02]} Rd4 {[%emt 0:00:46]} 41. Bxc5 {[%emt 0:00:25]} Rxd5 {[%emt 0:00:05]} 42. Bb4 {[%emt 0:00:46]} Bd4+ {[%emt 0:04:47]} 43. Kf1 {[%emt 0:00:29]} Bc5 {[%emt 0:00:03]} 44. Bc3 {[%emt 0:00:59]} Bd4 {[%emt 0:00:07]} 45. Be1 {[%emt 0:01:11]} a3 {[%emt 0:01:38]} 46. Rf8 {[%emt 0:05:59]} Kg7 {[%emt 0:01:20]} 47. Ra8 {[%emt 0:00:05]} Bb2 {[%emt 0:00:35]} 48. Bb4 {[%emt 0:00:28]} Rh5 {[%emt 0:00:59]} 49. Kg2 {[%emt 0:00:41]} Rg5+ {[%emt 0:00:14]} 50. Kf2 {[%emt 0:00:55]} Rh5 {[%emt 0:01:40]} 51. Kg3 {[%emt 0:02:47]} Rg5+ {[%emt 0:00:54]} 52. Kf4 {[%emt 0:00:48]} Rh5 {[%emt 0:03:08]} 53. Kg4 {[%emt 0:02:03]} Rd5 {[%emt 0:02:42]} 54. Bf8+ {[%emt 0:00:55]} Kh7 {[%emt 0:00:19]} 55. Bxa3 {[%emt 0:01:01]} Be5 {[%emt 0:00:14]} 56. f4 {[%emt 0:01:34]} f5+ {[%emt 0:00:52]} 57. Kf3 {[%emt 0:01:20]} Bg7 {[%emt 0:00:50]} 58. Ra7 {[%emt 0:00:46]} Kh6 {[%emt 0:00:13]} 59. Be7 {[%emt 0:00:23]} g5 {[%emt 0:01:16]} 60. Bxg5+ {[%emt 0:00:31]} Kg6 {[%emt 0:00:08]} 61. h4 {[%emt 0:00:27]} Bf8 {[%emt 0:00:57]} 62. a4 {[%emt 0:00:40]} Rd3+ {[%emt 0:00:15]} 63. Ke2 {[%emt 0:00:03]} Ra3 {[%emt 0:00:14]} 64. Kd2 {[%emt 0:00:36]} Kh5 {[%emt 0:00:18]} 65. Kc2 {[%emt 0:00:23]} Kg4 {[%emt 0:01:17]} 66. Kb2 {[%emt 0:00:01]} Re3 {[%emt 0:00:39]} 67. Rf7 {[%emt 0:00:39]} Ba3+ {[%emt 0:00:17]} 68. Kc2 {[%emt 0:00:05]} Bd6 {[%emt 0:00:00]} 69. h5 {[%emt 0:00:46]} Ra3 {[%emt 0:00:31]} 70. h6 1-0